Cogmind - Beta 16 @@@ ROGUE MODE // 2026.01.13 @ 17:08:28 Player: mm79 Result: Self-destructed Performance ------------- Evolutions (1) 500 Regions Visited (2) 400 Robots Destroyed (19) 95 Value Destroyed (341) 341 Prototype IDs (0) 0 Alien Tech Used (0) 0 Bonus (0) 0 TOTAL SCORE: 1336 Bonus ------- None Cogmind --------- Core Integrity 367/400 Matter 295/300 Energy 28/250 System Corruption 0% Temperature Cool (81) Movement Rolling (125) Ox3 Location -9/Materials Parts ------- > --- POWER (1) -------- Ion Engine > --- PROPULSION (2) --- Wheel > --- UTILITY (4) ------ Improved Heat Sink Large Storage Unit Improved Terrain Scanner Seismic Detector > --- WEAPON (2) ------- Particle Cannon Particle Cannon > --- INVENTORY (15) --- Ion Engine Wheel Wheel High-capacity Matter Pod (13) Visual Processing Unit Sensor Array Seismic Detector Medium Laser Particle Gun Beam Cannon Beam Cannon Beam Cannon Maul Peak State ------------ > --- POWER ------------ Ion Engine > --- PROPULSION ------- Wheel Wheel > --- UTILITY ---------- Improved Heat Sink Large Storage Unit Improved Terrain Scanner Seismic Detector > --- WEAPON ----------- Particle Cannon Particle Cannon > --- INVENTORY -------- Ion Engine Wheel Wheel High-capacity Matter Pod Visual Processing Unit Sensor Array Seismic Detector Medium Laser Particle Gun Beam Cannon Beam Cannon Beam Cannon Maul [Rating: 16] Favorites ----------- Power Ion Engine Engine Ion Engine Propulsion Wheel Wheel Wheel Utility Seismic Detector Device Seismic Detector Storage Medium Storage Unit Weapon Beam Cannon Energy Gun Small Laser Energy Cannon Beam Cannon Ballistic Gun Light Assault Rifle Build | -11 -10 -9 ------- Run | Yrd Mat Mat Slots Evolved 2 | . . 2 Power . | . . . Propulsion . | . . . Utility 2 | . . 2 Weapon . | . . . Parts Attached 19 | 7 8 4 Power 1 | 1 . . Engine 1 | 1 . . Core . | . . . Reactor . | . . . Propulsion 4 | 2 2 . Treads . | . . . Leg . | . . . Wheel 4 | 2 2 . Hover . | . . . Flight . | . . . Utility 7 | 2 3 2 Device 4 | 1 1 2 Storage 3 | 1 2 . Processor . | . . . Hackware . | . . . Protection . | . . . Artifact . | . . . Weapon 7 | 2 3 2 Energy Gun 2 | 1 1 . Energy Cannon 4 | . 2 2 Ballistic Gun 1 | 1 . . Ballistic Cannon . | . . . Launcher . | . . . Special Weapon . | . . . Impact Weapon . | . . . Slashing Weapon . | . . . Piercing Weapon . | . . . Special Melee Weapon . | . . . Unidentified Prototypes . | . . . Parts Lost 1 | . . 1 Power . | . . . Propulsion 1 | . . 1 Utility . | . . . Weapon . | . . . Highest Loss Streak 1 | . . 1 To Critical Strikes . | . . . Average Backups 8 | 2 9 12 Power . | . 1 1 Propulsion 1 | . 1 2 Utility 3 | . 3 4 Weapon 2 | . 3 5 Tool/Special . | . . . Unused Backups 14 | . 6 8 Power 2 | . 1 1 Propulsion 2 | . 1 1 Utility 5 | . 2 3 Weapon 5 | . 2 3 Tool/Special . | . . . Average Slot Usage (%) 99 | . 100 95 Engine 13 | . 14 11 Wheel 27 | . 28 19 Device 15 | . 14 30 Storage 13 | . 14 11 Energy Gun 5 | . 6 . Energy Cannon 16 | . 15 22 Ballistic Gun 5 | . 6 . Peak Build Rating 16 | 7 10 16 Average Rating 8 | 5 8 13 On Entrance 5 | . 7 8 Avg Prop Armor Cover (%) . | . . . Naked Turns . | . . . Heaviest Build 36 | 13 32 36 Greatest Support 26 | 26 26 20 Greatest Overweight (x) 1 | . 1 1 Average Overweight (x) . | . . 1 Largest Inventory Capacity 15 | 8 15 15 Average Capacity 10 | 7 10 15 Most Carried 14 | 6 13 14 Average Carried 8 | 1 9 12 Final Capacity 15 | 8 15 15 Final Carried 13 | 6 13 13 Class Distribution -------------------- 100% | Mutant Dominant Class ---------------- Mutant | -10/Materials Mutant | -9/Materials Resources | -11 -10 -9 ----------- Run | Yrd Mat Mat Matter Collected 449 | 280 113 56 Remotely . | . . . Salvage Created 529 | 64 452 13 Parts 37 | 8 27 2 Haulers Intercepted 1 | . 1 . Recyclers Shooed 1 | 1 . . Parts Field Recycled . | . . . Retrieved Matter . | . . . Parts Self-Destructed . | . . . Prevented . | . . . Parts Restored . | . . . Kills | -11 -10 -9 ------- Run | Yrd Mat Mat Combat Hostiles Destroyed 10 | . 9 1 Guns 3 | . 3 . Cannons 7 | . 6 1 Classes Destroyed 7 | 1 6 . Worker 2 | . 2 . Tunneler 4 | 4 . . Hauler 1 | . 1 . Mechanic 1 | . 1 . Watcher 1 | . 1 . Swarmer 4 | . 3 1 Grunt 6 | . 6 . Best Kill Streak 4 | 4 4 1 Combat Bots Only 4 | . 4 1 Max Kills in Single Turn 2 | 2 1 1 Gunslinging . | . . . Exploded . | . . . Melee . | . . . Uniques/NPCs Destroyed . | . . . Combat | -11 -10 -9 -------- Run | Yrd Mat Mat Hostile Shots Fired 48 | . 26 22 Missed 12 | . 7 5 Hits 36 | . 19 17 Projectile 36 | . 19 17 Damage Taken 388 | . 239 149 Core 109 | . 76 33 Absorbed by Shields . | . . . Core Remaining (%) 84 | 100 69 . Volleys Fired 53 | 10 39 4 Largest 2 | 2 2 2 Hottest 136 | 60 120 136 Shots Fired 106 | 20 78 8 Gun 52 | 20 32 . Cannon 54 | . 46 8 Launcher . | . . . Special . | . . . Kinetic 26 | 10 16 . Thermal 80 | 10 62 8 Explosive . | . . . Electromagnetic . | . . . Robot Hit Streak 14 | 4 14 4 Robot Miss Streak 5 | 2 5 4 Penetration Max . | . . . Secondary Targets . | . . . Shots Hit Robots 65 | 12 49 4 Core Hits 28 | 6 21 1 Critical Kills . | . . . Critical Parts Destroyed 1 | 1 . . Critical Strikes 1 | 1 . . Destroy 1 | 1 . . Melee Attacks . | . . . Impact . | . . . Slashing . | . . . Piercing . | . . . Sneak Attacks . | . . . Combat Hostiles . | . . . Follow-up Attacks . | . . . Damage Inflicted 979 | 143 713 123 Guns 400 | 143 257 . Cannons 579 | . 456 123 Explosions . | . . . Melee . | . . . Ramming . | . . . Kinetic 142 | 53 89 . Thermal 837 | 90 624 123 Explosive . | . . . Electromagnetic . | . . . Impact . | . . . Slashing . | . . . Piercing . | . . . Highest Corruption 2 | . 2 . Average Corruption 2 | . 2 . Corruption Purged . | . . . Corruption Blocked . | . . . Effects 2 | . 2 . Message Errors 1 | . 1 . Data Loss (minor) 1 | . 1 . Overload Shots . | . . . Overflow Damage 20 | . 19 1 Projectiles 20 | . 19 1 Explosions . | . . . Melee . | . . . Knockbacks . | . . . Impact . | . . . Kinetic . | . . . Secondary . | . . . Self-Inflicted Damage . | . . . Shots . | . . . Rammed . | . . . Targets Rammed . | . . . Kicked . | . . . Crushed . | . . . Highest Temperature 189 | 20 189 81 Average Temperature 35 | 9 39 31 Received Heat Transfer 117 | . 93 24 Siege Activations . | . . . Martial Activations . | . . . Shielding Activations . | . . . Robots Disrupted . | . . . Combat Hostiles . | . . . Robots Corrupted . | . . . Combat Hostiles . | . . . Parts Fried . | . . . Impact Corruptions . | . . . Robots Melted . | . . . Combat Hostiles . | . . . Parts Melted 2 | . 1 1 Heat Transferred 1758 | 200 1336 222 Parts Sabotaged . | . . . Parts Stolen . | . . . Parts Stripped . | . . . Power Chain Reactions . | . . . Alert | -11 -10 -9 ------- Run | Yrd Mat Mat Maximum Alert Level 1 | . 1 . Low Security (%) 99 | 100 99 100 Level 1 . | . . . Level 2 . | . . . Level 3 . | . . . Level 4 . | . . . Level 5 . | . . . High Security . | . . . Max Security . | . . . Peak Influence 202 | 10 202 53 Initial 53 | . . 53 Average 68 | 1 80 48 Influence Increases 426 | 20 386 20 Destroy 0b10 Robot/C 200 | . 180 20 Destroy 0b10 Robot/NC 45 | 20 25 . Destroy Leader 54 | . 54 . Successful Hack 4 | . 4 . Select Force Hacks 60 | . 60 . Disable Machine 15 | . 15 . Destroy Structure 3 | . 3 . Partial Spotted 15 | . 15 . Lose Combat Pursuer 30 | . 30 . Influence Decreases 383 | 20 259 104 Entered New Map 74 | . . 74 Time Decay 299 | 20 259 20 Lost Part 10 | . . 10 Squads Dispatched 4 | . 4 . Investigation 2 | . 2 . Extermination . | . . . Reinforcement 2 | . 2 . Assault . | . . . Garrison . | . . . Intercept . | . . . Searches Triggered . | . . . Construction Impeded . | . . . Haulers Reinforced . | . . . Active Scanning Responses . | . . . Cargo Convoy Interrupts . | . . . Stealth | -11 -10 -9 --------- Run | Yrd Mat Mat Distress Signals 1 | . 1 . Communications Jammed . | . . . Distress Signals . | . . . Times Spotted 24 | . 16 8 Peak Tracking Total 10 | . 3 10 Tactical Retreats 1 | . 1 . Traps | -11 -10 -9 ------- Run | Yrd Mat Mat Traps Triggered 1 | . 1 . Indirectly . | . . . Trap Hack Attempts . | . . . Triggered . | . . . Disarmed . | . . . Reprogrammed . | . . . Reused . | . . . Traps Extracted . | . . . Installed . | . . . Triggered . | . . . Machines | -11 -10 -9 ---------- Run | Yrd Mat Mat Machines Disabled 1 | . 1 . Max in Single Turn 1 | . 1 . Machines Repaired . | . . . Machines Dismantled . | . . . Machines Sabotaged . | . . . Overloaded Fab Kills . | . . . Hacking | -11 -10 -9 --------- Run | Yrd Mat Mat Machines Accessed 6 | . 6 . Terminals 4 | . 4 . Fabricators . | . . . Repair Stations . | . . . Recycling Units 2 | . 2 . Scanalyzers . | . . . Garrison Access . | . . . Total Hacks 18 | . 18 . Successful 7 | . 7 . Failed 11 | . 11 . Catastrophic . | . . . Database Lockouts . | . . . Manual 7 | . 7 . Terminals 12 | . 12 . Fabricators . | . . . Repair Stations . | . . . Recycling Units 6 | . 6 . Scanalyzers . | . . . Garrison Access . | . . . Terminal Hacks 2 | . 2 . Locate Traps 2 | . 2 . Fabricator Hacks . | . . . Repair Station Hacks . | . . . Recycling Unit Hacks 2 | . 2 . Report Inventory 2 | . 2 . Scanalyzer . | . . . Garrison Access Hacks . | . . . Unauthorized Hacks 3 | . 3 . Terminals 1 | . 1 . Botnet 1 | . 1 . Fabricators . | . . . Repair Stations . | . . . Recycling Units 2 | . 2 . Tunnel 2 | . 2 . Scanalyzers . | . . . Garrison Access . | . . . Data Cores Recovered . | . . . Used . | . . . Hacking Detections 6 | . 6 . Full Trace Events . | . . . Feedback Events . | . . . Feedback Blocked . | . . . Robot Schematics Acquired . | . . . Robots Built . | . . . Authchips . | . . . Time . | . . . Total Robot Build Rating . | . . . Part Schematics Acquired . | . . . Parts Built . | . . . Authchips . | . . . Time . | . . . Total Part Build Rating . | . . . Part Studies Acquired . | . . . Parts Repaired . | . . . Time . | . . . Parts Recycled . | . . . Recycled Matter . | . . . Retrieved Matter . | . . . Retrieved Components . | . . . Parts Scanalyzed . | . . . Part Schematics Acquired . | . . . Parts Damaged . | . . . Bothacking | -11 -10 -9 ------------ Run | Yrd Mat Mat Used RIF Installer . | . . . Robots Hacked . | . . . Non-combat . | . . . Combat . | . . . Robot Hacks Applied . | . . . Relay Couplers Released . | . . . Fabnet Peak Effective % . | . . . Robots Rewired . | . . . Allies Hacked . | . . . Hacks Repelled . | . . . Allies | -11 -10 -9 -------- Run | Yrd Mat Mat Total Allies . | . . . Largest Group . | . . . Highest-Rated Group . | . . . Highest-Rated Ally . | . . . Total Orders . | . . . Ally Attacks . | . . . Total Damage . | . . . Kills . | . . . Allies Corrupted . | . . . Allies Melted . | . . . Intel | -11 -10 -9 ------- Run | Yrd Mat Mat Active Infowar (turns) 673 | 18 613 42 Sensors 29 | . . 29 Terrain 41 | . . 41 Seismic 673 | 18 613 42 Robot Analysis Total . | . . . Derelict Logs Recovered . | . . . Drone Launches . | . . . Drone Recoveries . | . . . Exploration | -11 -10 -9 ------------- Run | Yrd Mat Mat Turns Passed 782 | 98 642 42 Spaces Moved 539 | 55 461 23 Core 1 | 1 . . Treads . | . . . Legs . | . . . Wheels 538 | 54 461 23 Hover . | . . . Flight . | . . . Fastest Speed 50 | 50 90 95 Average Speed 92 | 90 92 95 Slowest Speed 100 | 100 95 95 Overloaded Moves . | . . . Propulsion Burnouts . | . . . Robots Hopped . | . . . Potential Cave-ins . | . . . Cave-ins Triggered . | . . . Exploration Rate (%) 32 | 4 89 3 Regions Visited 2 Branch Regions . Pre-discovered Areas 2 | . 2 . Known Exits Taken . | . . . Unknown Exits Taken 2 | 1 1 . Scrap Searched . | . . . Spaces Dug . | . . . Terrain Destroyed . | . . . Melee . | . . . Projectile . | . . . AOE . | . . . Terrain Rammed . | . . . Walls Destroyed . | . . . Machines Disabled . | . . . Actions | -11 -10 -9 --------- Run | Yrd Mat Mat Total 719 | 81 604 34 Wait 70 | 4 66 . Move 537 | 54 460 23 Hop . | . . . Pick Up 22 | 6 15 1 Fast Attach 10 | 7 3 . Attach 2 | . . 2 Detach 1 | . 1 . Swap 10 | . 7 3 Drop 14 | . 13 1 Fire 53 | 10 39 4 Melee . | . . . Ram . | . . . Kick . | . . . Crush . | . . . Escape Stasis . | . . . Rewire . | . . . Trap . | . . . Miscellaneous . | . . . Route ------- -11/Scrapyard -10/Materials (discovered 4 exits: [*Mat x3] / [*Min]) -9/Materials History --------- Turn | Location | Event 10 | -11/Scrapyard | Discovered new exit (range 15) 99 | -11/Scrapyard | Entered Materials 301 | -10/Materials | Build established: Mutant 328 | -10/Materials | Discovered new exit (range 9) 388 | -10/Materials | Discovered new exit (range 3) 520 | -10/Materials | Discovered new exit (range 11) 684 | -10/Materials | Discovered new exit (range 3) 741 | -10/Materials | Entered another Materials area 741 | -9/Materials | Evolved 2 slots: Utility x2 783 | -9/Materials | Self-destructed Last Messages --------------- 00679_ Acquired Med. Laser. 00684_ EXIT=FOUND 00687_ K-01 Serf collects debris. 00699_ Z4GP/N3ZL# IHNTGK|UHONTUDYOLW< 00706_ Destroyed Wheel. 00711_ Connecting with Terminal... 00727_ M-13 Machinist destroyed. 00730_ Acquired 27 matter. PARAMETERS=UTILITY+2 LOCATION=UNKNOWN GOAL=ESCAPE 00757_ Acquired 56 matter. 00762_ Acquired Maul. 00763_ Dropped Mining Laser. 00774_ Destroyed Flight Unit. 00777_ S-10 Pest destroyed. 00777_ Wheel destroyed. 00777_ Flight Unit melted. 00777_ S-10 Pest destroyed. [Achievement: Back For More] Map ----- +----------------------------------------------------+ | | | | | | | | | | | | | | | | | | | | | | | | | | | ?????????????????????????????????????????????????? | | ???????????????#?????????????????????????????????? | | ???????????????????????????#?????????????????????? | | ?????????????????????????????????#???????????????? | | ?????????????????????????????????????????????????? | | ???????????????????????????#???????"?????????????? | | ?????????????????????????#?#?????????????????????? | | ?????????????#####?????????????#?????????????????? | | ?????????????# ###########?????????????????????? | | ?????????????# # #?????????????????????? | | ?????????????# # #?????????????????????? | | ?????????????# # / |#?????????????????????? | | ???????? ?#??# # @ #?????????????????????? | | ???????? ????# + [%#????????? ???????????? | | ???????????#?# # =%g########??????????????? | | ?????????????# # ssg ???????? | | ?????????????# # g########??????????????? | | ?????????????# ###########?????????????????????? | | ?????????????# #???????????#???????????????????? | | ?????????????# #???????????????????????????????? | | ?????????????# #???????????????????????????????? | | ?????????????# #????????????????????#??????????? | | ?????????????# ??????? ????????????????????????? | | ?????????????# ???????????? ???????????????????? | | ?????????????# ??????#????? ???????????????????? | | ??????????#??# ????????"???????????????????????? | | ?????????????# ?????????????? ?????????????????? | | ?????????????? ????????????????????????????????? | | ?????????????????????????????????????????????????? | | ?????????????????????????????????????????????????? | | ?????????????????????????????????????????????????? | | ?????????????????????????????????????????????????? | | ?????????????????????????????????????????????????? | | ?????????????????????????????????????????????????? | | ?????????????????????????????????????????????????? | | ?????????????????????????????????????????????????? | | ?????????????????????????????????????????????????? | +----------------------------------------------------+ Best States ------------- Heat Dissipation 42 Energy Generation 10 Energy Capacity 250 Matter Stores 300 Matter Capacity 300 Sight Range 16 Robot Scan Range 14 Terrain Scan Range 16 Terrain Scan Density 10 Evasion (%) 42 Item Schematics ----------------- None Robot Schematics ------------------ None Fabricated ------------ Nothing Repaired ---------- Nothing Studied --------- None Alien Tech Used ----------------- None Achievements -------------- Back For More Challenges ------------ None Game ------ Seed SupersonicTechDeflector Manual? 0 Play Time 00:11:46 Cumulative 46.4 hours Start 2026.01.13 @ 16:51:38 End 2026.01.13 @ 17:08:28 Sessions 1 Manual Loads 0 Difficulty Rogue Special Mode None Game No. 50 Rogue 50 Adventurer 0 Explorer 0 Win Type - Total 0 Types 0/0/0/0/0/0/0/0/0/0 Lore% 45 Gallery% 40 Achievement% 35 Wizard Run 0 Options --------- Layout 1 ASCII 0 Keyboard 0 Movement Mouse Keybinds 0 Fullscreen 1 Font 20/SmallcapsGlow Map View 54x42 Zoom Use 0% Tactical HUD 1 Map Filters NONE Filters NONE Steam 0 RUN: 639a37d5-b725-454e-91de-e7fbc3dae833